Cogmind - Beta 15 X1 --- EXPLORER MODE // 2024.12.28 @ 01:47:22 Player: Apollyon Result: Core destroyed Performance ------------- Evolutions (0) 0 Regions Visited (3) 600 Robots Destroyed (15) 75 Value Destroyed (335) 335 Prototype IDs (26) 520 Alien Tech Used (0) 0 Bonus (-270) -270 TOTAL SCORE: 1260 Bonus ------- Follower Combat Kills 35 Aligned with FarCom 300 Friendly Fire -605 Cogmind --------- Core Integrity 0/250 Matter 263/300 Energy 39/250 System Corruption 0% Temperature Critical (1010) Movement Rolling (125) Ox3 Location -10/Exiles Parts ------- > --- POWER (1) -------- Ion Engine > --- PROPULSION (3) --- Wheel Wheel > --- UTILITY (2) ------ Scrap Suit > --- WEAPON (2) ------- Firepult > --- INVENTORY (5) ---- Light Fission Core EM Pulse Gun Mining Claw Peak State ------------ > --- POWER ------------ Ion Engine > --- PROPULSION ------- Wheel Wheel Wheel > --- UTILITY ---------- Scrap Suit > --- WEAPON ----------- Firepult > --- INVENTORY -------- Light Fission Core EM Pulse Gun Mining Claw [Rating: 32] Favorites ----------- Power Light Ion Engine Engine Light Ion Engine Propulsion Wheel Wheel Wheel Flight Unit Flight Unit Utility Light Armor Plating Device Scrap Suit Processor Signal Interpreter Protection Light Armor Plating Weapon Assault Rifle Energy Gun EM Pulse Gun Energy Cannon Firepult Ballistic Gun Assault Rifle Slashing Weapon Mining Claw Build | -11 -10 -10 -10 ------- Run | Yrd Mat Min Exi Slots Evolved 1 | . 1 . . Power . | . . . . Propulsion 1 | . 1 . . Utility . | . . . . Weapon . | . . . . Parts Attached 25 | 10 7 7 1 Power 5 | 2 1 2 . Engine 5 | 2 1 2 . Core . | . . . . Reactor . | . . . . Propulsion 8 | 2 2 4 . Treads . | . . . . Leg . | . . . . Wheel 6 | 2 . 4 . Hover . | . . . . Flight 2 | . 2 . . Utility 6 | 4 1 1 . Device 3 | 2 . 1 . Storage . | . . . . Processor 1 | . 1 . . Hackware . | . . . . Protection 2 | 2 . . . Artifact . | . . . . Weapon 6 | 2 3 . 1 Energy Gun 1 | 1 . . . Energy Cannon 1 | . . . 1 Ballistic Gun 3 | 1 2 . . Ballistic Cannon . | . . . . Launcher . | . . . . Special Weapon . | . . . . Impact Weapon . | . . . . Slashing Weapon 1 | . 1 . . Piercing Weapon . | . . . . Special Melee Weapon . | . . . . Unidentified Prototypes . | . . . . Parts Lost 1 | . . . 1 Power . | . . . . Propulsion 1 | . . . 1 Utility . | . . . . Weapon . | . . . . Highest Loss Streak 1 | . . . 1 To Critical Strikes . | . . . . Average Backups 4 | 2 4 4 4 Power . | . . . 1 Propulsion . | . . . . Utility . | 1 1 . . Weapon 3 | 1 2 3 3 Tool/Special . | . . . . Unused Backups 3 | . . . 3 Power 1 | . . . 1 Propulsion . | . . . . Utility . | . . . . Weapon 2 | . . . 2 Tool/Special . | . . . . Average Slot Usage (%) 74 | . 66 78 81 Engine 11 | . 11 12 12 Wheel 15 | . . 20 36 Flight 5 | . 15 . . Device 4 | . . 4 12 Processor 5 | . 6 7 . Protection 8 | . 12 7 . Energy Gun 3 | . 4 . 7 Ballistic Gun 17 | . 14 24 7 Peak Build Rating 32 | 4 7 15 32 Average Rating 9 | 1 5 8 21 On Entrance 5 | . 2 5 15 Naked Turns . | . . . . Heaviest Build 31 | 8 11 14 31 Greatest Support 36 | 20 8 36 30 Greatest Overweight (x) 3 | 2 3 3 3 Average Overweight (x) . | . . . . Largest Inventory Capacity 5 | 5 5 5 5 Average Capacity 5 | 5 5 5 5 Most Carried 5 | 5 5 5 5 Average Carried 4 | 2 4 4 4 Final Capacity 5 | 5 5 5 5 Final Carried 5 | 5 5 5 3 Class Distribution -------------------- 68% | Hacker-Mutant 19% | Hacker-Scrapper 12% | Scavenger-Scrapper Dominant Class ---------------- Hacker-Mutant | -10/Materials Hacker-Mutant | -10/Mines Scavenger-Scrapper | -10/Exiles Resources | -11 -10 -10 -10 ----------- Run | Yrd Mat Min Exi Matter Collected 804 | 320 183 298 3 Remotely . | . . . . Salvage Created 624 | 67 258 160 139 Parts 36 | 6 17 3 10 Haulers Intercepted . | . . . . Recyclers Shooed 1 | . . 1 . Parts Field Recycled . | . . . . Retrieved Matter . | . . . . Parts Self-Destructed . | . . . . Prevented . | . . . . Kills | -11 -10 -10 -10 ------- Run | Yrd Mat Min Exi Combat Hostiles Destroyed 23 | 1 7 9 6 Guns 17 | 1 7 9 . AOE 4 | . . . 4 Classes Destroyed 5 | 2 2 1 . Tunneler 1 | 1 . . . Watcher 3 | . 3 . . Swarmer 4 | . 4 . . Grunt 6 | 1 3 2 . Assembled 13 | . . 7 6 Best Kill Streak 6 | 1 3 4 6 Combat Bots Only 6 | 1 2 4 6 Max Kills in Single Turn 5 | 1 1 1 5 Gunslinging . | . . . . Exploded 3 | . . . 3 Melee . | . . . . Uniques/NPCs Destroyed 1 | . . . 1 EX-BIN (-10/Exiles) Combat | -11 -10 -10 -10 -------- Run | Yrd Mat Min Exi Hostile Shots Fired 70 | 2 30 23 15 Missed 10 | . 5 5 . Damage Taken 628 | 21 182 180 245 Core 265 | 11 51 44 159 Absorbed by Shields . | . . . . Redirected to Shielding 2 | . 2 . . Ignored by Resistances 309 | 9 111 103 86 Regen/Repaired (Parts) 16 | . . 16 . Core Remaining (%) 95 | 95 . . . Volleys Fired 62 | 2 27 25 8 Largest 2 | 2 2 2 1 Hottest 250 | 60 60 40 250 Shots Fired 109 | 3 48 50 8 Gun 101 | 3 48 50 . Cannon 8 | . . . 8 Launcher . | . . . . Special . | . . . . Kinetic 81 | 1 30 50 . Thermal 8 | . . . 8 Explosive . | . . . . Electromagnetic 20 | 2 18 . . Robot Hit Streak 16 | 2 16 9 . Robot Miss Streak 1 | . 1 1 . Penetration Max . | . . . . Secondary Targets 1 | . . 1 . Max Gunslinging Chain 1 | . . 1 . Shots Hit Robots 71 | 2 30 39 . Core Hits 45 | 2 13 17 13 Critical Kills . | . . . . Critical Parts Destroyed . | . . . . Critical Strikes . | . . . . Melee Attacks 1 | . 1 . . Impact . | . . . . Slashing 1 | . 1 . . Piercing . | . . . . Sneak Attacks . | . . . . Combat Hostiles . | . . . . Follow-up Attacks . | . . . . Damage Inflicted 1353 | 45 426 490 392 Guns 876 | 27 387 462 . Cannons 92 | . . . 92 Explosions 300 | . . . 300 Melee 24 | . 24 . . Ramming 61 | 18 15 28 . Kinetic 655 | . 193 462 . Thermal 392 | . . . 392 Explosive . | . . . . Electromagnetic 221 | 27 194 . . Impact . | . . . . Slashing 24 | . 24 . . Piercing . | . . . . Highest Corruption . | . . . . Average Corruption . | . . . . Corruption Purged . | . . . . Corruption Blocked . | . . . . Overload Shots . | . . . . Overflow Damage 11 | . . . 11 Projectiles 11 | . . . 11 Explosions . | . . . . Melee . | . . . . Knockbacks 2 | 1 . 1 . Impact 2 | 1 . 1 . Kinetic . | . . . . Secondary . | . . . . Self-Inflicted Damage 37 | 8 7 12 10 Shots 2 | . . . 2 Rammed 19 | 7 6 6 . Targets Rammed 19 | 7 6 6 . Kicked . | . . . . Crushed . | . . . . Highest Temperature 1080 | 6 183 24 1080 Average Temperature 188 | 6 49 11 444 Received Heat Transfer 273 | 12 117 64 80 Effects 13 | . . . 13 Shutdowns 3 | . . . 3 Matter Decay 1 | . . . 1 Short Circuit 1 | . . . 1 Damage (major) 5 | . . . 5 Damage (core) 3 | . . . 3 Siege Activations . | . . . . Martial Activations . | . . . . Shielding Activations . | . . . . Robots Disrupted . | . . . . Combat Hostiles . | . . . . Robots Corrupted . | . . . . Combat Hostiles . | . . . . Parts Fried . | . . . . Impact Corruptions . | . . . . Robots Melted 2 | . . . 2 Combat Hostiles 2 | . . . 2 Parts Melted 1 | . . . 1 Heat Transferred 2320 | . . . 2320 Parts Sabotaged . | . . . . Parts Stolen . | . . . . Parts Stripped . | . . . . Power Chain Reactions . | . . . . Alert | -11 -10 -10 -10 ------- Run | Yrd Mat Min Exi Maximum Alert Level . | . . . . Low Security (%) 100 | 100 100 100 . Level 1 . | . . . . Level 2 . | . . . . Level 3 . | . . . . Level 4 . | . . . . Level 5 . | . . . . High Security . | . . . . Max Security . | . . . . Peak Influence 95 | 20 95 35 . Initial . | . . . . Average 9 | 1 20 1 . Influence Increases 366 | 25 261 80 . Destroy 0b10 Robot/C 220 | 20 140 60 . Destroy 0b10 Robot/NC 20 | 5 15 . . Destroy Leader 56 | . 36 20 . Successful Hack 20 | . 20 . . Disable Machine 4 | . 4 . . Destroy Structure 1 | . 1 . . Lose Combat Pursuer 45 | . 45 . . Influence Decreases 366 | 25 261 80 . Time Decay 366 | 25 261 80 . Squads Dispatched . | . . . . Investigation . | . . . . Extermination . | . . . . Reinforcement . | . . . . Assault . | . . . . Garrison . | . . . . Intercept . | . . . . Searches Triggered . | . . . . Construction Impeded . | . . . . Haulers Reinforced . | . . . . Active Scanning Responses . | . . . . Cargo Convoy Interrupts . | . . . . Stealth | -11 -10 -10 -10 --------- Run | Yrd Mat Min Exi Distress Signals 3 | . 2 1 . Communications Jammed . | . . . . Distress Signals . | . . . . Times Spotted 35 | 1 15 12 7 Peak Tracking Total 9 | 1 5 3 9 Tactical Retreats 5 | . 1 4 . Traps | -11 -10 -10 -10 ------- Run | Yrd Mat Min Exi Traps Triggered 3 | . 3 . . Indirectly . | . . . . Trap Hack Attempts . | . . . . Triggered . | . . . . Disarmed 1 | . 1 . . Reprogrammed . | . . . . Reused . | . . . . Traps Extracted . | . . . . Installed . | . . . . Triggered . | . . . . Machines | -11 -10 -10 -10 ---------- Run | Yrd Mat Min Exi Machines Disabled 5 | . 1 . 4 Max in Single Turn 2 | . 1 . 2 Machines Repaired . | . . . . Machines Dismantled . | . . . . Machines Sabotaged . | . . . . Overloaded Fab Kills . | . . . . Hacking | -11 -10 -10 -10 --------- Run | Yrd Mat Min Exi Machines Accessed 11 | . 7 . 4 Terminals 5 | . 5 . . Fabricators . | . . . . Repair Stations . | . . . . Recycling Units 2 | . 2 . . Scanalyzers . | . . . . Garrison Access . | . . . . Total Hacks 51 | . 24 . 27 Successful 45 | . 18 . 27 Failed 6 | . 6 . . Catastrophic . | . . . . Database Lockouts . | . . . . Manual 9 | . 5 . 4 Terminals 20 | . 20 . . Fabricators . | . . . . Repair Stations . | . . . . Recycling Units 4 | . 4 . . Scanalyzers . | . . . . Garrison Access . | . . . . Terminal Hacks 41 | . 14 . 27 Record 30 | . 4 . 26 Prototype ID Bank 2 | . 2 . . Branch Access Points 1 | . 1 . . Emergency Access Points 1 | . 1 . . Locate Traps 1 | . 1 . . Disarm Traps 1 | . 1 . . Surveillance Status 1 | . 1 . . Hauler Manifests 2 | . 2 . . Registered Components 1 | . 1 . . Derelict Proto ID Bank 1 | . . . 1 Fabricator Hacks . | . . . . Repair Station Hacks . | . . . . Recycling Unit Hacks 2 | . 2 . . Process 1 | . 1 . . Report Inventory 1 | . 1 . . Scanalyzer . | . . . . Garrison Access Hacks . | . . . . Unauthorized Hacks 2 | . 2 . . Terminals 2 | . 2 . . Assimilate 2 | . 2 . . Fabricators . | . . . . Repair Stations . | . . . . Recycling Units . | . . . . Scanalyzers . | . . . . Garrison Access . | . . . . Data Cores Recovered . | . . . . Used . | . . . . Hacking Detections 5 | . 5 . . Full Trace Events 1 | . 1 . . Feedback Events . | . . . . Feedback Blocked . | . . . . Robot Schematics Acquired . | . . . . Robots Built . | . . . . Authchips . | . . . . Time . | . . . . Total Robot Build Rating . | . . . . Part Schematics Acquired . | . . . . Parts Built . | . . . . Authchips . | . . . . Time . | . . . . Total Part Build Rating . | . . . . Parts Repaired . | . . . . Time . | . . . . Parts Recycled . | . . . . Recycled Matter . | . . . . Retrieved Matter . | . . . . Retrieved Components . | . . . . Parts Scanalyzed . | . . . . Part Schematics Acquired . | . . . . Parts Damaged . | . . . . Bothacking | -11 -10 -10 -10 ------------ Run | Yrd Mat Min Exi Used RIF Installer . | . . . . Robots Hacked . | . . . . Non-combat . | . . . . Combat . | . . . . Robot Hacks Applied . | . . . . Relay Couplers Released . | . . . . Fabnet Peak Effective % . | . . . . Robots Rewired . | . . . . Allies Hacked . | . . . . Hacks Repelled . | . . . . Allies | -11 -10 -10 -10 -------- Run | Yrd Mat Min Exi Total Allies 1 | . . 1 . Largest Group 1 | . . 1 1 Highest-Rated Group 31 | . . 31 31 Highest-Rated Ally 31 | . . 31 31 Total Orders . | . . . . Ally Attacks 3 | . . 3 . Total Damage 63 | . . 63 . Kills 2 | . . 2 . Allies Corrupted . | . . . . Allies Melted . | . . . . Intel | -11 -10 -10 -10 ------- Run | Yrd Mat Min Exi Active Infowar (turns) 79 | 76 3 . . Terrain 41 | 38 3 . . Seismic 38 | 38 . . . Robot Analysis Total . | . . . . Derelict Logs Recovered . | . . . . Drone Launches . | . . . . Drone Recoveries . | . . . . Exploration | -11 -10 -10 -10 ------------- Run | Yrd Mat Min Exi Turns Passed 2225 | 192 741 930 362 Spaces Moved 2042 | 221 706 731 384 Core 582 | 215 175 192 . Treads . | . . . . Legs . | . . . . Wheels 929 | 6 . 539 384 Hover . | . . . . Flight 531 | . 531 . . Fastest Speed 37 | 50 37 80 80 Average Speed 93 | 70 85 112 85 Slowest Speed 200 | 150 200 200 125 Overloaded Moves . | . . . . Propulsion Burnouts . | . . . . Robots Hopped 3 | . 3 . . Cave-ins Triggered . | . . . . Exploration Rate (%) 55 | 7 82 90 43 Regions Visited 3 Branch Regions 2 Pre-discovered Areas . | . . . . Known Exits Taken 3 | 1 1 1 . Unknown Exits Taken . | . . . . Scrap Searched . | . . . . Spaces Dug . | . . . . Terrain Destroyed 27 | . . . 27 Melee . | . . . . Projectile 3 | . . . 3 AOE 24 | . . . 24 Terrain Rammed . | . . . . Walls Destroyed . | . . . . Machines Disabled . | . . . . Actions | -11 -10 -10 -10 --------- Run | Yrd Mat Min Exi Total 2247 | 257 785 790 415 Wait 31 | . 21 10 . Move 2033 | 220 699 730 384 Hop 3 | . 3 . . Pick Up 8 | 2 2 2 2 Fast Attach 27 | 9 11 7 . Attach 11 | 3 6 1 1 Detach 19 | 10 6 2 1 Swap . | . . . . Drop 20 | 4 3 7 6 Fire 62 | 2 27 25 8 Melee 1 | . 1 . . Ram 19 | 7 6 6 . Kick . | . . . . Crush . | . . . . Escape Stasis . | . . . . Rewire 13 | . . . 13 Trap . | . . . . Miscellaneous . | . . . . Route ------- -11/Scrapyard -10/Materials (discovered 4 exits: *Mat / *Min x2 / *Sub) -10/Mines (discovered 3 exits: *Mat x2 / *Exi) -10/Exiles History --------- Turn | Location | Event 2 | -11/Scrapyard | Met Revision 17 47 | -11/Scrapyard | Identified exit to Materials 47 | -11/Scrapyard | Discovered exit to Materials (range 8) 193 | -11/Scrapyard | Entered Materials 193 | -10/Materials | Evolved 1 slot: Propulsion x1 312 | -10/Materials | Build established: Hacker-Mutant 414 | -10/Materials | Identified exit to Subcaves 414 | -10/Materials | Discovered exit to Subcaves (range 10) 465 | -10/Materials | Identified exit to Materials 465 | -10/Materials | Discovered exit to Materials (range 16) 710 | -10/Materials | Identified exit to Mines 710 | -10/Materials | Discovered exit to Mines (range 7) 826 | -10/Materials | Discovered exit to Mines (range 11) 934 | -10/Materials | Entered Mines 952 | -10/Mines | Met a Derelict bent on vengeance 1138 | -10/Mines | Discovered exit to Materials (range 13) 1141 | -10/Mines | Assembled infested the area 1440 | -10/Mines | Discovered exit to Materials (range 8) 1450 | -10/Mines | Deemed a non-threat by the Exiles lab entrance 1450 | -10/Mines | Identified exit to Exiles 1450 | -10/Mines | Discovered exit to Exiles (range 5) 1518 | -10/Mines | Found a Scrap Suit stashed away for nefarious purposes 1530 | -10/Mines | Found Scrap Suit 1695 | -10/Mines | Received a Mining Laser from a helpful Derelict 1864 | -10/Mines | Entered Exiles 1864 | -10/Exiles | Accompanied by 1 ally 1896 | -10/Exiles | Met 8R-AWN 1911 | -10/Exiles | Met EX-HEX 2031 | -10/Exiles | Met EX-BIN 2046 | -10/Exiles | Aligned with FarCom system 2047 | -10/Exiles | Given EX-Vault access code 2071 | -10/Exiles | Opened EX-Vault 2092 | -10/Exiles | Found Firepult 2163 | -10/Exiles | Warned to stay clear of 0b10 Research branches 2183 | -10/Exiles | Murdered EX-BIN 2184 | -10/Exiles | Attacked by the Exiles 2209 | -10/Exiles | Core integrity fell below 50% 2224 | -10/Exiles | Core integrity fell below 20% 2227 | -10/Exiles | Core destroyed Last Messages --------------- 02209_ as-52411 critical meltdown. 02209_ as-95081 destroyed. 02211_ Power failure, Ion Engine shutdown. 02211_ Destroyed Asb. Hover Unit. 02211_ as-37426 destroyed. 02212_ Overheating: Firepult damaged (-131). 02212_ Overheating: Wheel damaged (-24). 02213_ Wheel broken. 02213_ Overheating: Short circuit. 02213_ as-06044 heat spikes uncontrollably. 02216_ Power failure, Ion Engine shutdown. 02217_ as-06044 heat short circuits Asb. Hover Unit. 02220_ as-06044 heat damages Broken Asb. Hover Unit. 02222_ Overheating: Core damaged (-42). 02223_ Penetrated by HV Slug. 02225_ Overheating: Core damaged (-27). 02225_ Penetrated by HV Slug. 02226_ Power failure, Ion Engine shutdown. 02226_ Overheating: Matter decay (-35). 02227_ Overheating: Core damaged (-35). Map ----- +----------------------------------------------------+ | | | | | | | | | | | | | ???????????????????????###???????????????????????? | | ????????????????????####X####????????????????????? | | ????????????????????# ! #????????????????????? | | ????????????????????#[| ! #????????????????????? | | ????????????????????#[] #????????????????????? | | ????????????????????## ##????????????????????? | | ????????????????????#X #?????????????????????? | | ????????????????????## #?????????????????????? | | ?????????????????????# #?????????????????????? | | ?????????????????????# #########?????????????? | | ?????????????????????# ##""""""#?????????????? | | ?????????????????????# ## """#?????????????? | | ?????????????????????# X""#?????????????? | | ?????????????????????# ## """#?????????????? | | ?????????????######### ##""""""#?????????????? | | ?????????????#""""""## #########?????????????? | | ?????????????#"""" ## #?????????????????????? | | ?????????????#""X" #?????????????????????? | | ?????????????#" ##????????????????????? | | ?????????????#" # @ #????????????????????? | | ?????????????#""""""# ##########???????????? | | ?????????????##"##### ##"""""""#???????????? | | ????????????? "????## ;##"""""""#???????????? | | ????????????""" ?????# ;##"""""""#???????????? | | ????????????""" ????## ###"" " ""#???????????? | | ??????????????" ????#" ""#???????????? | | ??????????????##????#" "#???????????? | | ????????????????????#" "#???????????? | | ????????????????????#" "#???????????? | | ????????????????????#" % "#???????????? | | ????????????????????#" %% """## ?????????? | | ????????????????????## a """"""?????????? | | ?????????????????????# """###?????????? | | ?????????????????????#" % X" """""??????????? | | ?????????????????????#" "" # ??????????? | | ?????????????????????#" """""#???????????? | | ????????????????????##" % #######???????????? | | ???????????????????##"" #?????????????????? | | ???????????????#####" #?????????????????? | | ???????????????"""""" % #?????????????????? | | ??????????????""" " #?###########?????? | | ????????????" """ " #####"""""""""##????? | | ??????????? " " " """ """"##???? | | ?????????? "" " #???? | +----------------------------------------------------+ Best States ------------- Heat Dissipation 25 Energy Generation 10 Energy Capacity 250 Matter Stores 300 Matter Capacity 300 Sight Range 16 Terrain Scan Range 14 Terrain Scan Density 10 Armor Coverage 150 Resistance: KI 35 Resistance: TH 35 Resistance: EX 35 Resistance: EM 35 Resistance: I 35 Resistance: S 35 Resistance: P 35 Power Shielding 33 Evasion (%) 62 Offensive Hacking 20 Item Schematics ----------------- None Robot Schematics ------------------ None Fabricated ------------ Nothing Repaired ---------- Nothing Alien Tech Used ----------------- None Achievements -------------- None Challenges ------------ None Game ------ Seed MissileBurstFlail Manual? 0 Play Time 00:38:59 Cumulative 10.7 hours Start 2024.12.18 @ 14:17:57 End 2024.12.28 @ 01:47:22 Sessions 6 Manual Loads 0 Difficulty Explorer Special Mode None Game No. 15 Rogue 10 Adventurer 0 Explorer 5 Win Type - Total 0 Types 0/0/0/0/0/0/0/0/0 Lore% 9 Gallery% 11 Achievement% 14 Wizard Run 0 Options --------- Layout 0 ASCII 0 Keyboard 1 Movement Arrows Keybinds 0 Fullscreen 1 Font 18/SmallcapsGlow Map View 76x50 Zoom Use 0% Tactical HUD 1 Map Filters NONE Filters NONE Steam 1 RUN: fd034234-19bc-4432-8c86-83069e67aff3